fUSD/lending_fUSD_20241121
["ID","MTS","AMOUNT","RATE_DAILY","PERIOD"]
[342886499,1732193478115,-150.0,0.0004187,2]
[342886500,1732193478125,-500.0,0.00041876,120]
[342886501,1732193478142,-500.0,0.00041876,120]
[342886502,1732193478156,-500.0,0.00041876,120]
[342886503,1732193478166,-500.0,0.00041876,120]
[342886504,1732193478358,-500.0,0.00041876,120]
[342886505,1732193478411,-500.0,0.00041876,120]
[342886506,1732193478422,-500.0,0.00041876,120]
[342886507,1732193478432,-500.0,0.00041876,120]
[342886508,1732193478441,-500.0,0.00041876,120]
[342886509,1732193478451,-500.0,0.00041876,120]
[342886510,1732193478461,-500.0,0.00041876,120]
[342886511,1732193478471,-500.0,0.00041876,120]
[342886512,1732193478482,-500.0,0.00041876,120]
[342886513,1732193478492,-500.0,0.00041876,120]
[342886514,1732193478501,-500.0,0.00041876,120]
[342886515,1732193478511,-500.0,0.00041876,120]
[342886516,1732193478520,-500.0,0.00041876,120]
[342886517,1732193478531,-500.0,0.00041876,120]
[342886518,1732193478541,-500.0,0.00041876,120]
[342886519,1732193478550,-500.0,0.00041876,120]
[342886520,1732193478560,-500.0,0.00041876,120]
[342886521,1732193478569,-500.0,0.00041876,120]
[342886522,1732193478579,-500.0,0.00041876,120]
[342886523,1732193478588,-500.0,0.00041876,120]
[342886524,1732193478598,-500.0,0.00041876,120]
[342886525,1732193478607,-500.0,0.00041876,120]
[342886526,1732193478617,-500.0,0.00041876,120]
[342886527,1732193478626,-500.0,0.00041876,120]
[342886528,1732193478639,-500.0,0.00041876,120]
[342886529,1732193478650,-500.0,0.00041876,120]
[342886530,1732193478659,-500.0,0.00041876,120]
[342886531,1732193478669,-500.0,0.00041876,120]
[342886532,1732193478678,-500.0,0.00041876,120]
[342886533,1732193478688,-500.0,0.00041876,120]
[342886534,1732193478698,-500.0,0.00041876,120]
[342886535,1732193478709,-500.0,0.00041876,120]
[342886536,1732193478719,-500.0,0.00041876,120]
[342886537,1732193478730,-500.0,0.00041876,120]
[342886538,1732193478741,-500.0,0.00041876,120]
[342886539,1732193478751,-500.0,0.00041876,120]
[342886540,1732193478761,-500.0,0.00041876,120]
[342886541,1732193478770,-500.0,0.00041876,120]
[342886542,1732193478780,-500.0,0.00041876,120]
[342886543,1732193478789,-500.0,0.00041876,120]
[342886544,1732193478799,-500.0,0.00041876,120]
[342886545,1732193478809,-500.0,0.00041876,120]
[342886546,1732193478819,-500.0,0.00041876,120]
[342886547,1732193478828,-500.0,0.00041876,120]
[342886548,1732193478838,-500.0,0.00041876,120]
[342886549,1732193478848,-500.0,0.00041876,120]
[342886550,1732193478859,-500.0,0.00041876,120]
[342886551,1732193478870,-500.0,0.00041876,120]
[342886552,1732193478880,-500.0,0.00041876,120]
[342886553,1732193478894,-500.0,0.00041876,120]
[342886554,1732193478903,-500.0,0.00041876,120]
[342886555,1732193478913,-500.0,0.00041876,120]
[342886556,1732193478923,-500.0,0.00041876,120]
[342886557,1732193478933,-500.0,0.00041876,120]
[342886558,1732193478947,-500.0,0.00041876,120]
[342886559,1732193478963,-500.0,0.00041876,120]
[342886560,1732193478972,-500.0,0.00041876,120]
[342886561,1732193478982,-500.0,0.00041876,120]
[342886562,1732193478992,-500.0,0.00041876,120]
[342886563,1732193479002,-500.0,0.00041876,120]
[342886564,1732193479012,-500.0,0.00041876,120]
[342886565,1732193479022,-150.0,0.00041882,2]
[342886566,1732193479032,-150.0,0.00041884,2]
[342886567,1732193479042,-150.0,0.00041885,7]
[342886568,1732193479057,-150.0,0.00041887,2]
[342886569,1732193479067,-150.0,0.00041892,7]
[342886570,1732193479077,-150.0,0.00041893,7]
[342886571,1732193479087,-400.0,0.000419,15]
[342886572,1732193479099,-151.0,0.00041916,14]
[342886573,1732193479108,-151.0,0.00041916,14]
[342886574,1732193479118,-151.0,0.00041916,14]
[342886575,1732193479128,-151.0,0.00041916,14]
[342886576,1732193479154,-201.39148,0.00041916,14]
[342886577,1732193479165,-151.0,0.00041916,14]
[342886578,1732193479175,-151.0,0.00041916,14]
[342886579,1732193479186,-267.39361875,0.00041917,7]
[342886580,1732193479197,-500.0,0.00041917,18]
[342886581,1732193479207,-560.90586923,0.00041917,18]
[342886582,1732193479218,-500.0,0.00041917,18]
[342886583,1732193479229,-500.0,0.00041917,18]
[342886584,1732193479239,-200.0,0.00041917,7]
[342886585,1732193479249,-500.0,0.00041917,18]
[342886586,1732193479260,-628.2,0.00041917,18]
[342886587,1732193479270,-1037.71,0.00041917,18]
[342886588,1732193479279,-500.0,0.00041917,18]
[342886589,1732193479290,-500.0,0.00041917,18]
[342886590,1732193479300,-731.52,0.00041917,18]
[342886591,1732193479310,-500.0,0.00041917,18]
[342886592,1732193479321,-1107.864162,0.00041917,18]
[342886593,1732193479331,-154.589909,0.00041917,18]
[342886594,1732193479341,-184.75393,0.00041917,18]
[342886595,1732193479351,-500.0,0.00041917,18]
[342886596,1732193479362,-1241.3,0.00041917,18]
[342886597,1732193479373,-1088.78,0.00041917,18]
[342886598,1732193479383,-500.0,0.00041917,18]
[342886599,1732193479397,-706.93,0.00041917,18]
[342886600,1732193479408,-500.0,0.00041917,18]
[342886601,1732193479418,-500.0,0.00041917,18]
[342886602,1732193479428,-500.0,0.00041917,18]
[342886603,1732193479438,-500.0,0.00041917,18]
[342886604,1732193479448,-500.0,0.00041917,18]
[342886605,1732193479458,-500.0,0.00041917,18]
[342886606,1732193479468,-1196.42,0.00041917,18]
[342886607,1732193479478,-500.0,0.00041917,18]
[342886608,1732193479488,-500.0,0.00041917,18]
[342886609,1732193479499,-318.34195873,0.00041917,18]
[342886610,1732193479509,-794.11,0.00041917,18]
[342886611,1732193479519,-500.0,0.00041917,18]
[342886612,1732193479529,-1197.92101318,0.00041917,30]
[342886613,1732193479538,-500.0,0.00041917,18]
[342886614,1732193479547,-938.93,0.00041917,18]
[342886615,1732193479557,-1359.5,0.00041917,18]
[342886616,1732193479568,-151.0,0.00041917,14]
[342886617,1732193479578,-151.0,0.00041917,14]
[342886618,1732193479588,-500.0,0.00041917,18]
[342886619,1732193479598,-500.0,0.00041917,18]
[342886620,1732193479608,-1025.1,0.00041917,18]
[342886621,1732193479618,-863.08,0.00041917,18]
[342886622,1732193479628,-500.0,0.00041917,18]
[342886623,1732193479641,-500.0,0.00041917,18]
[342886624,1732193479651,-500.0,0.00041917,18]
[342886625,1732193479660,-526.23,0.00041917,18]
[342886626,1732193479671,-631.60036612,0.00041917,18]
[342886627,1732193479681,-827.93,0.00041917,18]
[342886628,1732193479690,-500.0,0.00041917,18]
[342886629,1732193479700,-500.0,0.00041917,18]
[342886630,1732193479710,-500.0,0.00041917,18]
[342886631,1732193479720,-500.0,0.00041917,18]
[342886632,1732193479729,-522.43,0.00041917,18]
[342886633,1732193479739,-500.0,0.00041917,18]
[342886634,1732193479748,-1500.29,0.00041917,18]
[342886635,1732193479758,-150.0,0.00041917,18]
[342886636,1732193479767,-151.0,0.00041917,14]
[342886637,1732193479778,-500.0,0.00041917,18]
[342886638,1732193479787,-500.0,0.00041917,18]
[342886639,1732193479797,-853.38,0.00041917,18]
[342886640,1732193479807,-500.0,0.00041917,18]
[342886641,1732193479817,-500.0,0.00041917,18]
[342886642,1732193479827,-500.0,0.00041917,18]
[342886643,1732193479836,-1707.73,0.00041917,18]
[342886644,1732193479845,-500.0,0.00041917,18]
[342886645,1732193479855,-851.64,0.00041917,18]
[342886646,1732193479865,-1631.71,0.00041917,18]
[342886647,1732193479874,-500.0,0.00041917,18]
[342886648,1732193479883,-500.0,0.00041917,18]
[342886649,1732193479897,-2045.78,0.00041917,18]
[342886650,1732193479906,-604.88,0.00041917,18]
[342886651,1732193479916,-524.06,0.00041917,18]
[342886652,1732193479927,-609.81,0.00041917,18]
[342886653,1732193479939,-500.0,0.00041917,18]
[342886654,1732193479949,-1217.63,0.00041917,18]
[342886655,1732193479959,-625.79,0.00041917,18]
[342886656,1732193479968,-503.49,0.00041917,18]
[342886657,1732193479977,-500.0,0.00041917,18]
[342886658,1732193479987,-1276.71,0.00041917,18]
[342886659,1732193479997,-2179.03,0.00041917,18]
[342886660,1732193480007,-500.0,0.00041917,18]
[342886661,1732193480017,-1069.27,0.00041917,18]
[342886662,1732193480027,-500.0,0.00041917,18]
[342886663,1732193480037,-500.0,0.00041917,18]
[342886664,1732193480047,-982.72,0.00041917,18]
[342886665,1732193480061,-592.04,0.00041917,18]
[342886666,1732193480070,-565.83,0.00041917,18]
[342886667,1732193480080,-500.0,0.00041917,18]
[342886668,1732193480090,-500.0,0.00041917,18]
[342886669,1732193480100,-636.36282973,0.00041917,18]
[342886670,1732193480110,-500.0,0.00041917,18]
[342886671,1732193480120,-1145.38,0.00041917,18]
[342886672,1732193480133,-500.0,0.00041917,18]
[342886673,1732193480148,-683.41,0.00041917,18]
[342886674,1732193480157,-809.06,0.00041917,18]
[342886675,1732193480167,-500.0,0.00041917,18]
[342886676,1732193480177,-500.0,0.00041917,18]
[342886677,1732193480186,-500.0,0.00041917,18]
[342886678,1732193480196,-871.48,0.00041917,18]
[342886679,1732193480206,-500.0,0.00041917,18]
[342886680,1732193480216,-500.0,0.00041917,18]
[342886681,1732193480226,-1807.73,0.00041917,18]
[342886682,1732193480236,-500.0,0.00041917,18]
[342886683,1732193480245,-500.0,0.00041917,18]
[342886684,1732193480256,-3487.06,0.00041917,18]
[342886685,1732193480266,-626.13,0.00041917,18]
[342886686,1732193480276,-151.0,0.00041917,14]
[342886687,1732193480286,-500.0,0.00041917,18]
[342886688,1732193480296,-910.29,0.00041917,18]
[342886689,1732193480306,-500.0,0.00041917,18]
[342886690,1732193480315,-625.75,0.00041917,18]
[342886691,1732193480325,-500.0,0.00041917,18]
[342886692,1732193480335,-1035.2,0.00041917,18]
[342886693,1732193480344,-647.8,0.00041917,18]
[342886694,1732193480353,-500.0,0.00041917,18]
[342886695,1732193480363,-500.0,0.00041917,18]
[342886696,1732193480374,-551.20928484,0.00041917,18]
[342886697,1732193480383,-500.0,0.00041917,18]
[342886698,1732193480397,-500.0,0.00041917,18]
[342886699,1732193480408,-500.0,0.00041917,18]
[342886700,1732193480417,-160.668024,0.00041917,14]
[342886701,1732193480427,-796.66,0.00041917,18]
[342886702,1732193480436,-672.69,0.00041917,18]
[342886703,1732193480446,-662.24,0.00041917,18]
[342886704,1732193480455,-153.655498,0.00041917,14]
[342886705,1732193480466,-749.93,0.00041917,18]
[342886706,1732193480475,-151.0,0.00041917,14]
[342886707,1732193480484,-426.39962518,0.00041917,18]
[342886708,1732193480494,-796.31,0.00041917,18]
[342886709,1732193480504,-982.89,0.00041917,18]
[342886710,1732193480513,-500.0,0.00041917,18]
[342886711,1732193480523,-928.18,0.00041917,18]
[342886712,1732193480533,-716.66,0.00041917,18]
[342886713,1732193480543,-500.0,0.00041917,18]
[342886714,1732193480553,-500.0,0.00041917,18]
[342886715,1732193480562,-500.0,0.00041917,18]
[342886716,1732193480572,-500.0,0.00041917,18]
[342886717,1732193480581,-1599.91,0.00041917,18]
[342886718,1732193480591,-513.36,0.00041917,18]
[342886719,1732193480600,-500.0,0.00041917,18]
[342886720,1732193480609,-525.37,0.00041917,18]
[342886721,1732193480619,-1042.34,0.00041917,18]
[342886722,1732193480627,-556.05,0.00041917,18]
[342886723,1732193480639,-500.0,0.00041917,18]
[342886724,1732193480648,-500.0,0.00041917,18]
[342886725,1732193480657,-500.0,0.00041917,18]
[342886726,1732193480667,-751.29,0.00041917,120]
[342886727,1732193480677,-500.0,0.00041917,18]
[342886728,1732193480686,-500.0,0.00041917,18]
[342886729,1732193480695,-500.0,0.00041917,18]
[342886730,1732193480705,-889.44,0.00041917,18]
[342886731,1732193480714,-500.0,0.00041917,18]
[342886732,1732193480724,-1153.16,0.00041917,18]
[342886733,1732193480733,-500.0,0.00041917,18]
[342886734,1732193480743,-500.0,0.00041917,18]
[342886735,1732193480753,-500.0,0.00041917,18]
[342886736,1732193480764,-500.0,0.00041917,18]
[342886737,1732193480774,-690.57,0.00041917,18]
[342886738,1732193480785,-500.0,0.00041917,18]
[342886739,1732193480796,-500.0,0.00041917,18]
[342886740,1732193480807,-500.0,0.00041917,18]
[342886741,1732193480816,-752.18,0.00041917,18]
[342886742,1732193480826,-500.0,0.00041917,18]
[342886743,1732193480836,-500.0,0.00041917,18]
[342886744,1732193480845,-500.0,0.00041917,18]
[342886745,1732193480854,-453.03763733,0.00041917,18]
[342886746,1732193480866,-1355.88,0.00041917,18]
[342886747,1732193480875,-500.0,0.00041917,18]
[342886748,1732193480892,-1305.13,0.00041917,18]
[342886749,1732193480904,-890.02,0.00041917,7]
[342886750,1732193480914,-500.0,0.00041917,18]
[342886751,1732193480924,-2684.63,0.00041917,18]
[342886752,1732193480934,-500.0,0.00041917,18]
[342886753,1732193480943,-433.95377869,0.00041917,18]
[342886754,1732193480953,-781.53,0.00041917,18]
[342886755,1732193480965,-461.88698507,0.00041917,18]
[342886756,1732193480975,-551.41,0.00041917,18]
[342886757,1732193480985,-500.0,0.00041917,18]
[342886758,1732193480995,-585.82,0.00041917,18]
[342886759,1732193481077,-536.18,0.00041917,18]
[342886760,1732193481087,-1121.83,0.00041917,18]
[342886761,1732193481099,-500.0,0.00041917,18]
[342886762,1732193481109,-861.58,0.00041917,18]
[342886763,1732193481119,-2079.25,0.00041917,18]
[342886764,1732193481129,-500.0,0.00041917,18]
[342886765,1732193481140,-500.0,0.00041917,18]
[342886766,1732193481150,-151.0,0.00041917,14]
[342886767,1732193481159,-500.0,0.00041917,18]
[342886768,1732193481169,-500.0,0.00041917,18]
[342886769,1732193481178,-500.0,0.00041917,18]
[342886770,1732193481187,-500.0,0.00041917,18]
[342886771,1732193481196,-500.0,0.00041917,18]
[342886772,1732193481206,-583.87,0.00041917,18]
[342886773,1732193481216,-500.0,0.00041917,18]
[342886774,1732193481225,-864.0,0.00041917,18]
[342886775,1732193481235,-500.0,0.00041917,18]
[342886776,1732193481245,-204.651667,0.00041917,14]
[342886777,1732193481254,-396.45061891,0.00041917,18]
[342886778,1732193481264,-811.04,0.00041917,18]
[342886779,1732193481273,-500.0,0.00041917,18]
[342886780,1732193481282,-985.19,0.00041917,18]
[342886781,1732193481291,-500.0,0.00041917,18]
[342886782,1732193481300,-500.0,0.00041917,18]
[342886783,1732193481310,-500.0,0.00041917,18]
[342886784,1732193481319,-500.0,0.00041917,18]
[342886785,1732193481329,-500.0,0.00041917,18]
[342886786,1732193481338,-500.0,0.00041917,18]
[342886787,1732193481347,-500.0,0.00041917,18]
[342886788,1732193481357,-661.33,0.00041917,18]
[342886789,1732193481366,-500.0,0.00041917,18]
[342886790,1732193481375,-780.38,0.00041917,18]
[342886791,1732193481385,-587.0,0.00041917,18]
[342886792,1732193481397,-500.0,0.00041917,18]
[342886793,1732193481406,-1744.06,0.00041917,18]
[342886794,1732193481415,-1000.0,0.00041917,5]
[342886795,1732193481425,-500.0,0.00041917,18]
[342886796,1732193481434,-500.0,0.00041917,18]
[342886797,1732193481444,-639.27,0.00041917,18]
[342886798,1732193481453,-500.0,0.00041917,18]
[342886799,1732193481462,-500.0,0.00041917,18]
[342886800,1732193481472,-822.09,0.00041917,18]
[342886801,1732193481481,-1554.77,0.00041917,18]
[342886802,1732193481491,-500.0,0.00041917,18]
[342886803,1732193481500,-500.0,0.00041917,18]
[342886804,1732193481510,-687.6,0.00041917,18]
[342886805,1732193481519,-500.0,0.00041917,18]
[342886806,1732193481529,-672.87,0.00041917,18]
[342886807,1732193481538,-656.21,0.00041917,18]
[342886808,1732193481548,-500.0,0.00041917,18]
[342886809,1732193481557,-500.0,0.00041917,18]
[342886810,1732193481566,-500.0,0.00041917,18]
[342886811,1732193481576,-500.0,0.00041917,18]
[342886812,1732193481585,-820.87,0.00041917,18]
[342886813,1732193481595,-500.0,0.00041917,18]
[342886814,1732193481604,-500.0,0.00041917,18]
[342886815,1732193481614,-500.0,0.00041917,18]
[342886816,1732193481623,-864.49,0.00041917,18]
[342886817,1732193481632,-2242.03,0.00041917,18]
[342886818,1732193481644,-500.0,0.00041917,18]
[342886819,1732193481654,-500.0,0.00041917,18]
[342886820,1732193481663,-1710.98,0.00041917,18]
[342886821,1732193481672,-500.0,0.00041917,18]
[342886822,1732193481682,-500.0,0.00041917,18]
[342886823,1732193481691,-2945.64,0.00041917,18]
[342886824,1732193481700,-500.0,0.00041917,18]
[342886825,1732193481710,-500.0,0.00041917,18]
[342886826,1732193481719,-500.0,0.00041917,18]
[342886827,1732193481728,-500.0,0.00041917,18]
[342886828,1732193481738,-500.0,0.00041917,18]
[342886829,1732193481747,-1329.94,0.00041917,18]
[342886830,1732193481757,-500.0,0.00041917,18]
[342886831,1732193481766,-565.97,0.00041917,18]
[342886832,1732193481775,-2673.22,0.00041917,18]
[342886833,1732193481785,-500.0,0.00041917,18]
[342886834,1732193481794,-500.0,0.00041917,18]
[342886835,1732193481803,-500.0,0.00041917,18]
[342886836,1732193481813,-688.51,0.00041917,18]
[342886837,1732193481822,-500.0,0.00041917,18]
[342886838,1732193481831,-1288.56,0.00041917,18]
[342886839,1732193481840,-500.0,0.00041917,18]
[342886840,1732193481849,-537.09,0.00041917,18]
[342886841,1732193481859,-2144.77,0.00041917,18]
[342886842,1732193481868,-500.0,0.00041917,18]
[342886843,1732193481877,-996.01,0.00041917,18]
[342886844,1732193481890,-151.0,0.00041917,14]
[342886845,1732193481899,-151.0,0.00041917,14]
[342886846,1732193481909,-626.16,0.00041917,18]
[342886847,1732193481918,-500.0,0.00041917,18]
[342886848,1732193481927,-151.0,0.00041917,14]
[342886849,1732193481937,-151.0,0.00041917,14]
[342886850,1732193481946,-558.68,0.00041917,18]
[342886851,1732193481956,-500.0,0.00041917,18]
[342886852,1732193481965,-500.0,0.00041917,18]
[342886853,1732193481974,-940.29,0.00041917,18]
[342886854,1732193481983,-500.0,0.00041917,18]
[342886855,1732193481993,-151.0,0.00041917,14]
[342886856,1732193482002,-1122.32,0.00041917,18]
[342886857,1732193482011,-606.44,0.00041917,18]
[342886858,1732193482021,-845.45,0.00041917,18]
[342886859,1732193482030,-500.0,0.00041917,18]
[342886860,1732193482039,-737.88,0.00041917,18]
[342886861,1732193482049,-711.26,0.00041917,18]
[342886862,1732193482062,-500.0,0.00041917,18]
[342886863,1732193482071,-518.26,0.00041917,18]
[342886864,1732193482081,-2681.19,0.00041917,18]
[342886865,1732193482089,-500.0,0.00041917,18]
[342886866,1732193482101,-500.0,0.00041917,18]
[342886867,1732193482110,-500.0,0.00041917,18]
[342886868,1732193482119,-1502.52,0.00041917,18]
[342886869,1732193482130,-952.89,0.00041917,18]
[342886870,1732193482141,-1521.88,0.00041917,18]
[342886871,1732193482150,-821.19,0.00041917,18]
[342886872,1732193482159,-2090.41,0.00041917,18]
[342886873,1732193482169,-1062.64,0.00041917,18]
[342886874,1732193482178,-764.24,0.00041917,18]
[342886875,1732193482187,-1343.71,0.00041917,18]
[342886876,1732193482197,-589.28,0.00041917,18]
[342886877,1732193482206,-500.0,0.00041917,18]
[342886878,1732193482217,-151.0,0.00041917,14]
[342886879,1732193482226,-500.0,0.00041917,18]
[342886880,1732193482236,-698.8,0.00041917,18]
[342886881,1732193482245,-500.0,0.00041917,18]
[342886882,1732193482254,-506.18720295,0.00041917,18]
[342886883,1732193482263,-726.8,0.00041917,18]
[342886884,1732193482277,-1664.59,0.00041917,7]
[342886885,1732193482286,-189.41432119,0.00041917,14]
[342886886,1732193482296,-501.77,0.00041917,18]
[342886887,1732193482305,-500.0,0.00041917,18]
[342886888,1732193482314,-1564.67,0.00041917,18]
[342886889,1732193482323,-1282.42,0.00041917,18]
[342886890,1732193482332,-646.78,0.00041917,18]
[342886891,1732193482341,-500.0,0.00041917,18]
[342886892,1732193482351,-500.0,0.00041917,18]
[342886893,1732193482360,-500.0,0.00041917,18]
[342886894,1732193482370,-500.0,0.00041917,18]
[342886895,1732193482378,-836.41,0.00041917,18]
[342886896,1732193482390,-500.0,0.00041917,18]
[342886897,1732193482399,-1119.3,0.00041917,18]
[342886898,1732193482408,-1046.11,0.00041917,18]
[342886899,1732193482417,-500.0,0.00041917,18]
[342886900,1732193482427,-500.0,0.00041917,18]
[342886901,1732193482435,-500.0,0.00041917,18]
[342886902,1732193482444,-500.0,0.00041917,18]
[342886903,1732193482453,-500.0,0.00041917,18]
[342886904,1732193482462,-500.0,0.00041917,18]
[342886905,1732193482471,-547.65,0.00041917,18]
[342886906,1732193482480,-500.0,0.00041917,18]
[342886907,1732193482489,-500.0,0.00041917,18]
[342886908,1732193482498,-1651.28,0.00041917,18]
[342886909,1732193482507,-1037.5,0.00041917,18]
[342886910,1732193482516,-500.0,0.00041917,18]
[342886911,1732193482526,-500.0,0.00041917,18]
[342886912,1732193482535,-500.0,0.00041917,18]
[342886913,1732193482544,-482.18225884,0.00041917,18]
[342886914,1732193482552,-1523.03,0.00041917,18]
[342886915,1732193482561,-500.73,0.00041917,18]
[342886916,1732193482571,-2155.21,0.00041917,18]
[342886917,1732193482580,-500.0,0.00041917,18]
[342886918,1732193482588,-1553.55,0.00041917,18]
[342886919,1732193482597,-1543.58,0.00041917,18]
[342886920,1732193482606,-587.28,0.00041917,18]
[342886921,1732193482616,-782.96,0.00041917,18]
[342886922,1732193482625,-291.100054,0.00041917,14]
[342886923,1732193482634,-500.0,0.00041917,18]
[342886924,1732193482646,-500.0,0.00041917,18]
[342886925,1732193482655,-1689.71,0.00041917,18]
[342886926,1732193482672,-500.0,0.00041917,18]
[342886927,1732193482684,-507.85,0.00041917,18]
[342886928,1732193482693,-500.0,0.00041917,18]
[342886929,1732193482703,-887.67,0.00041917,18]
[342886930,1732193482712,-761.94,0.00041917,18]
[342886931,1732193482721,-1661.07,0.00041917,18]
[342886932,1732193482731,-500.0,0.00041917,18]
[342886933,1732193482740,-500.0,0.00041917,18]
[342886934,1732193482750,-973.81,0.00041917,18]
[342886935,1732193482759,-634.93,0.00041917,18]
[342886936,1732193482773,-500.0,0.00041917,18]
[342886937,1732193482782,-634.27,0.00041917,18]
[342886938,1732193482792,-1621.46,0.00041917,18]
[342886939,1732193482801,-500.0,0.00041917,18]
[342886940,1732193482810,-1950.66,0.00041917,18]
[342886941,1732193482821,-2151.89,0.00041917,18]
[342886942,1732193482833,-500.0,0.00041917,18]
[342886943,1732193482844,-500.0,0.00041917,18]
[342886944,1732193482853,-500.0,0.00041917,18]
[342886945,1732193482862,-500.0,0.00041917,18]
[342886946,1732193482871,-500.0,0.00041917,18]
[342886947,1732193482880,-500.0,0.00041917,18]
[342886948,1732193482893,-1283.69,0.00041917,18]
[342886949,1732193482902,-1800.7,0.00041917,18]
[342886950,1732193482911,-555.01,0.00041917,18]
[342886951,1732193482921,-500.0,0.00041917,18]
[342886952,1732193482930,-966.2,0.00041917,18]
[342886953,1732193482940,-500.0,0.00041917,18]
[342886954,1732193482950,-500.0,0.00041917,18]
[342886955,1732193482960,-866.93,0.00041917,18]
[342886956,1732193482969,-629.53,0.00041917,18]
[342886957,1732193482979,-500.0,0.00041917,18]
[342886958,1732193482988,-500.0,0.00041917,18]
[342886959,1732193482997,-500.0,0.00041917,18]
[342886960,1732193483007,-500.0,0.00041917,18]
[342886961,1732193483017,-500.0,0.00041917,18]
[342886962,1732193483026,-500.0,0.00041917,18]
[342886963,1732193483036,-500.0,0.00041917,18]
[342886964,1732193483046,-1667.95,0.00041917,18]
[342886965,1732193483058,-684.17,0.00041917,18]
[342886966,1732193483067,-500.0,0.00041917,18]
[342886967,1732193483077,-678.25,0.00041917,18]
[342886968,1732193483086,-500.0,0.00041917,18]
[342886969,1732193483096,-500.0,0.00041917,18]
[342886970,1732193483106,-500.0,0.00041917,18]
[342886971,1732193483115,-500.0,0.00041917,18]
[342886972,1732193483124,-500.0,0.00041917,18]
[342886973,1732193483134,-151.0,0.00041917,14]
[342886974,1732193483147,-500.0,0.00041917,18]
[342886975,1732193483156,-1917.64,0.00041917,18]
[342886976,1732193483165,-533.52,0.00041917,18]
[342886977,1732193483174,-500.0,0.00041917,18]
[342886978,1732193483183,-2686.07,0.00041917,18]
[342886979,1732193483192,-151.0,0.00041917,14]
[342886980,1732193483201,-500.0,0.00041917,18]
[342886981,1732193483211,-1035.49,0.00041917,18]
[342886982,1732193483221,-500.0,0.00041917,18]
[342886983,1732193483230,-1010.02,0.00041917,18]
[342886984,1732193483240,-500.0,0.00041917,18]
[342886985,1732193483250,-620.3,0.00041917,18]
[342886986,1732193483260,-707.45,0.00041917,18]
[342886987,1732193483269,-1372.53,0.00041917,18]
[342886988,1732193483278,-173.987485,0.00041917,14]
[342886989,1732193483288,-500.0,0.00041917,18]
[342886990,1732193483297,-2598.42,0.00041917,18]
[342886991,1732193483307,-500.0,0.00041917,18]
[342886992,1732193483316,-500.0,0.00041917,18]
[342886993,1732193483326,-734.73,0.00041917,18]
[342886994,1732193483336,-151.0,0.00041917,14]
[342886995,1732193483346,-500.0,0.00041917,18]
[342886996,1732193483355,-500.0,0.00041917,18]
[342886997,1732193483365,-736.28,0.00041917,18]
[342886998,1732193483374,-580.85,0.00041917,18]